bitfinex/quotes_BTCUSD_20230904
["timestamp","ask_amount","ask_price","bid_price","bid_amount"]
[1693829647838,0.05,25863.0,25862.0,0.73326038]
[1693829648902,0.01511523,25863.0,25862.0,0.73326038]
[1693829653265,0.08,25865.0,25862.0,0.72926038]
[1693829653463,0.08,25865.0,25863.0,0.07492604]
[1693829653675,0.08,25865.0,25864.0,0.42708678]
[1693829654063,0.08,25865.0,25864.0,0.47695223]
[1693829655295,0.34636033,25866.0,25865.0,0.04]
[1693829655497,0.27717597,25867.0,25865.0,0.42708678]
[1693829655700,0.27618618,25867.0,25866.0,0.476782]
[1693829655894,0.13734568,25867.0,25866.0,0.476782]
[1693829656836,0.15234568,25867.0,25866.0,0.5266327]
[1693829657856,0.05237454,25868.0,25866.0,0.5486327]
[1693829658006,0.43892585,25869.0,25868.0,0.04]
[1693829658211,0.30008535,25869.0,25868.0,0.48195005]
[1693829659241,0.62404652,25869.0,25868.0,0.48195005]
[1693829659488,0.48520602,25869.0,25868.0,0.48395005]
[1693829659769,0.30008535,25869.0,25868.0,0.48495005]
[1693829659965,0.30008535,25869.0,25868.0,0.53476574]
[1693829660709,0.30008535,25869.0,25868.0,0.53276574]
[1693829661520,0.30008535,25869.0,25868.0,0.53376574]
[1693829662218,0.30008535,25869.0,25868.0,0.53576574]
[1693829664928,0.2553,25869.0,25868.0,0.53576574]
[1693829665345,0.36958705,25871.0,25870.0,0.02]
[1693829665569,0.45314842,25871.0,25870.0,0.40708678]
[1693829665727,0.45216432,25871.0,25870.0,0.47966335]
[1693829667004,0.45216432,25871.0,25870.0,0.48166335]
[1693829667224,0.31338535,25871.0,25870.0,0.48166335]
[1693829667561,0.31338535,25871.0,25870.0,0.48366335]
[1693829667763,0.40585705,25871.0,25870.0,0.48366335]
[1693829668389,0.3610717,25871.0,25870.0,0.48366335]
[1693829668591,0.3610717,25871.0,25870.0,0.50366335]
[1693829670546,0.2686,25871.0,25870.0,0.50366335]
[1693829672720,0.21522649,25871.0,25870.0,0.50366335]
[1693829673562,0.21522649,25871.0,25870.0,0.50166335]
[1693829673771,0.21522649,25871.0,25870.0,0.50266335]
[1693829674175,0.21522649,25871.0,25870.0,0.50166335]
[1693829674793,0.21522649,25871.0,25870.0,0.49966335]
[1693829675002,0.21522649,25871.0,25870.0,0.50066335]
[1693829675208,0.26001184,25871.0,25870.0,0.49966335]
[1693829675419,0.15048057,25871.0,25870.0,0.49966335]
[1693829675624,0.0924717,25872.0,25870.0,0.50066335]
[1693829675829,0.13725705,25872.0,25871.0,0.45715312]
[1693829679096,0.13725705,25872.0,25871.0,0.45915312]
[1693829680916,0.13725705,25872.0,25871.0,0.50679396]
[1693829683371,0.04478535,25872.0,25871.0,0.50679396]
[1693829683745,0.38245705,25873.0,25872.0,0.02]
[1693829683963,0.38245705,25873.0,25872.0,0.45956618]
[1693829685149,0.38245705,25873.0,25872.0,0.46056618]
[1693829685956,0.38245705,25873.0,25872.0,0.46156618]
[1693829686431,0.52123602,25873.0,25872.0,0.46156618]
[1693829686616,0.38245705,25873.0,25872.0,0.46156618]
[1693829686816,0.52123602,25873.0,25872.0,0.46156618]
[1693829687018,0.52123602,25873.0,25872.0,0.50924693]
[1693829687595,0.38245705,25873.0,25872.0,0.50924693]
[1693829688270,0.52123602,25873.0,25872.0,0.50924693]
[1693829688446,0.38245705,25873.0,25872.0,0.50924693]
[1693829696172,0.38245705,25873.0,25872.0,0.50824693]
[1693829697604,0.3376717,25873.0,25872.0,0.50824693]
[1693829698063,0.3376717,25873.0,25872.0,0.52824693]
[1693829698241,0.0924717,25873.0,25872.0,0.52824693]
[1693829700600,0.27603602,25874.0,25873.0,0.039]
[1693829700775,0.04478535,25874.0,25873.0,0.47891147]
[1693829701005,0.27613218,25874.0,25873.0,0.47891147]
[1693829701186,0.23134683,25874.0,25873.0,0.47891147]
[1693829702075,0.23134683,25874.0,25873.0,0.51960665]
[1693829702275,0.09253873,25874.0,25873.0,0.51960665]
[1693829702687,0.49529404,25874.0,25873.0,0.51960665]
[1693829702929,0.59730903,25874.0,25873.0,0.11251987]
[1693829703118,0.85787792,25874.0,25873.0,0.05969518]
[1693829703282,0.82527755,25874.0,25873.0,0.04069518]
[1693829703494,0.65040067,25874.0,25873.0,0.04069518]
[1693829703689,0.65040067,25874.0,25873.0,0.001]
[1693829703903,0.00947625,25873.0,25872.0,0.019]
[1693829704112,0.72572599,25873.0,25872.0,0.019]
[1693829704307,1.12510298,25873.0,25872.0,0.019]
[1693829704555,0.93998885,25873.0,25872.0,0.019]
[1693829705546,0.6402459,25873.0,25872.0,0.001]
[1693829705856,0.6402459,25873.0,25872.0,0.02]
[1693829706056,0.6402459,25873.0,25872.0,0.001]
[1693829706057,1.57281263,25873.0,25872.0,0.001]
[1693829706256,1.34141997,25873.0,25872.0,0.001]
[1693829706462,1.77839577,25873.0,25872.0,0.001]
[1693829706659,2.10551577,25873.0,25872.0,0.001]
[1693829706861,2.17691577,25873.0,25869.0,0.019]
[1693829707072,0.13885852,25870.0,25869.0,0.0399]
[1693829707245,0.14833477,25870.0,25869.0,0.0399]
[1693829707686,0.33347946,25870.0,25869.0,0.0399]
[1693829707884,0.14833477,25870.0,25869.0,0.0399]
[1693829708242,0.33347946,25870.0,25869.0,0.0399]
[1693829708479,0.33347946,25870.0,25869.0,0.0419]
[1693829708480,0.15933477,25870.0,25869.0,0.0419]
[1693829709048,0.34447946,25870.0,25869.0,0.0419]
[1693829709258,0.43558012,25870.0,25869.0,0.0419]
[1693829709450,0.44058012,25870.0,25869.0,0.0439]
[1693829709741,0.62572481,25870.0,25869.0,0.0439]
[1693829710145,0.58986481,25870.0,25869.0,0.0439]
[1693829710378,0.58628681,25870.0,25869.0,0.0439]
[1693829711208,0.43232781,25870.0,25869.0,0.0439]
[1693829712313,0.43165681,25870.0,25869.0,0.0439]
[1693829713255,0.24651212,25870.0,25869.0,0.0439]
[1693829714242,0.43165681,25870.0,25869.0,0.0439]
[1693829714415,0.24651212,25870.0,25869.0,0.0439]
[1693829716982,0.005,25870.0,25869.0,0.0439]
[1693829717561,0.09757043,25870.0,25869.0,0.0439]
[1693829718243,0.005,25870.0,25869.0,0.0439]
[1693829719450,0.22700228,25870.0,25869.0,0.0439]
[1693829722046,0.22600228,25870.0,25869.0,0.0439]
[1693829722247,0.22600228,25870.0,25869.0,0.004]
[1693829722248,0.58025092,25870.0,25869.0,0.004]
[1693829722456,0.89478495,25870.0,25869.0,0.004]
[1693829722665,1.12621581,25870.0,25869.0,0.004]
[1693829723096,0.94107112,25870.0,25869.0,0.004]
[1693829723294,1.12617437,25870.0,25869.0,0.004]
[1693829723501,1.12617437,25870.0,25869.0,0.0273]
[1693829724817,1.10617437,25870.0,25869.0,0.0273]
[1693829725497,0.87474351,25870.0,25869.0,0.0273]
[1693829728430,0.89474351,25870.0,25869.0,0.0273]
[1693829730600,0.71019963,25870.0,25869.0,0.0273]
[1693829730757,0.89522266,25870.0,25869.0,0.0273]
[1693829731173,0.87522266,25870.0,25869.0,0.0273]
[1693829731385,0.48355706,25870.0,25869.0,0.0273]
[1693829732018,0.87545516,25870.0,25869.0,0.0273]
[1693829732449,0.48355706,25870.0,25869.0,0.0273]
[1693829732705,0.62719107,25870.0,25869.0,0.0273]
[1693829732882,0.91484646,25870.0,25869.0,0.0273]
[1693829738203,0.68356767,25870.0,25869.0,0.0273]
[1693829742401,0.94628735,25870.0,25869.0,0.0273]
[1693829742852,0.65863196,25870.0,25869.0,0.0273]
[1693829743486,0.4517058,25870.0,25869.0,0.0273]
[1693829743682,0.61240029,25870.0,25869.0,0.0273]
[1693829744696,0.84361808,25870.0,25869.0,0.0273]
[1693829745089,0.81211619,25870.0,25869.0,0.0273]
[1693829745618,0.62713007,25870.0,25869.0,0.0273]
[1693829748291,0.39591228,25870.0,25869.0,0.0273]
[1693829748731,0.62728869,25870.0,25869.0,0.0273]
[1693829749347,0.39591228,25870.0,25869.0,0.0273]
[1693829760912,0.39591228,25870.0,25869.0,0.1349]
[1693829761106,0.39591228,25870.0,25869.0,0.1677044]
[1693829763469,0.69187999,25870.0,25869.0,0.1677044]
[1693829770706,0.39591228,25870.0,25869.0,0.1677044]
[1693829770907,0.67344683,25870.0,25869.0,0.0368044]
[1693829771260,1.26269906,25870.0,25869.0,0.0368044]
[1693829771464,1.45389486,25870.0,25869.0,0.004]
[1693829771663,1.77584123,25870.0,25869.0,0.004]
[1693829771879,1.77680123,25870.0,25869.0,0.004]
[1693829772082,1.77668123,25870.0,25869.0,0.004]
[1693829772292,1.77668123,25870.0,25868.0,0.19]
[1693829772293,0.081,25869.0,25868.0,0.19]
[1693829772500,1.32279486,25869.0,25868.0,0.19]
[1693829772707,1.42527486,25869.0,25868.0,0.19]
[1693829772903,1.42503486,25869.0,25868.0,0.19]
[1693829773109,1.43061486,25869.0,25868.0,0.19]
[1693829773305,1.42851486,25869.0,25868.0,0.19]
[1693829773521,1.42605486,25869.0,25868.0,0.19]
[1693829773739,1.42509486,25869.0,25868.0,0.19]
[1693829773925,1.42605486,25869.0,25868.0,0.19]
[1693829774131,1.42599486,25869.0,25868.0,0.19]
[1693829774381,1.43475486,25869.0,25868.0,0.19]
[1693829774600,1.42509486,25869.0,25868.0,0.19]
[1693829774811,1.43753906,25869.0,25868.0,0.194]
[1693829775032,1.43717906,25869.0,25868.0,0.194]
[1693829775231,1.43717906,25869.0,25868.0,0.196]
[1693829775232,1.46147906,25869.0,25868.0,0.196]
[1693829775432,1.46105906,25869.0,25868.0,0.196]
[1693829775641,1.46069906,25869.0,25868.0,0.196]
[1693829775842,1.61477406,25869.0,25868.0,0.196]
[1693829776063,1.61429406,25869.0,25868.0,0.196]
[1693829776261,1.61381406,25869.0,25868.0,0.196]
[1693829776486,1.63441406,25869.0,25868.0,0.196]
[1693829776685,1.63759406,25869.0,25868.0,0.196]
[1693829776898,1.63267406,25869.0,25868.0,0.196]
[1693829777064,2.12330572,25869.0,25868.0,0.196]
[1693829777437,2.12924572,25869.0,25868.0,0.196]
[1693829777661,1.65607406,25869.0,25868.0,0.196]
[1693829777855,2.59915209,25869.0,25868.0,0.196]
[1693829778057,2.11122043,25869.0,25868.0,0.18432992]
[1693829778265,2.10846043,25869.0,25868.0,0.18432992]
[1693829778469,1.97448043,25869.0,25868.0,0.18432992]
[1693829778669,1.97388043,25869.0,25868.0,0.18432992]
[1693829778857,2.46451209,25869.0,25868.0,0.18432992]
[1693829779108,2.46571209,25869.0,25868.0,0.18432992]
[1693829779311,1.63159406,25869.0,25868.0,0.18432992]
[1693829779592,1.63021406,25869.0,25868.0,0.18432992]
[1693829779795,1.63003406,25869.0,25868.0,0.18432992]
[1693829780010,1.62703406,25869.0,25868.0,0.18432992]
[1693829780206,2.11748572,25869.0,25868.0,0.18432992]
[1693829780364,1.81822126,25869.0,25868.0,0.18432992]
[1693829780565,2.30135292,25869.0,25868.0,0.18432992]
[1693829780768,1.80466126,25869.0,25868.0,0.18432992]
[1693829780976,1.80610126,25869.0,25868.0,0.18432992]
[1693829781167,1.7824476,25869.0,25868.0,0.18432992]
[1693829781489,1.7024676,25869.0,25868.0,0.18432992]
[1693829781842,1.97999748,25869.0,25868.0,0.18432992]
[1693829782364,2.18600123,25869.0,25868.0,0.18432992]
[1693829786670,2.18600123,25869.0,25868.0,0.006]
[1693829788103,2.21182579,25869.0,25868.0,0.006]
[1693829788304,1.72873781,25869.0,25868.0,0.006]
[1693829788627,1.73347781,25869.0,25868.0,0.006]
[1693829788824,1.72693781,25869.0,25868.0,0.006]
[1693829789055,1.72843781,25869.0,25868.0,0.006]
[1693829789264,1.72771781,25869.0,25868.0,0.006]
[1693829789466,1.72759781,25869.0,25868.0,0.006]
[1693829789646,1.72687781,25869.0,25868.0,0.006]
[1693829789852,1.72519781,25869.0,25868.0,0.006]
[1693829790003,1.72549781,25869.0,25868.0,0.006]
[1693829790201,1.72615781,25869.0,25868.0,0.006]
[1693829790408,1.72603781,25869.0,25868.0,0.006]
[1693829790597,1.72597781,25869.0,25868.0,0.006]
[1693829790788,1.72639781,25869.0,25868.0,0.006]
[1693829790983,1.72573781,25869.0,25868.0,0.006]
[1693829791216,2.07667361,25869.0,25868.0,0.006]
[1693829791411,2.55082159,25869.0,25868.0,0.006]
[1693829791627,2.54902159,25869.0,25868.0,0.006]
[1693829791874,2.54818159,25869.0,25868.0,0.006]
[1693829792066,0.001,25867.0,25861.0,0.039]
[1693829792270,0.23112278,25863.0,25861.0,0.039]
[1693829792423,0.24728382,25863.0,25861.0,0.039]
[1693829792627,0.23112278,25863.0,25861.0,0.039]
[1693829792827,0.28421654,25862.0,25861.0,0.039]
[1693829794091,0.28421654,25862.0,25861.0,0.041]
[1693829794092,0.30821654,25862.0,25861.0,0.041]
[1693829794295,0.024,25862.0,25861.0,0.1486]
[1693829794697,0.048,25862.0,25861.0,0.1506]
[1693829795039,0.048,25862.0,25861.0,0.18897914]
[1693829795236,0.048,25862.0,25861.0,0.20987705]
[1693829796394,0.048,25862.0,25861.0,0.38987705]
[1693829814305,0.72859516,25862.0,25861.0,0.22237914]
[1693829814503,1.72041402,25862.0,25861.0,0.22237914]
[1693829814732,2.23072126,25862.0,25861.0,0.184]
[1693829815060,2.04582303,25862.0,25861.0,0.184]
[1693829815188,1.92135158,25862.0,25861.0,0.184]
[1693829815401,2.15844558,25862.0,25861.0,0.184]
[1693829815598,2.00373258,25862.0,25861.0,0.184]
[1693829816520,1.76663858,25862.0,25861.0,0.184]
[1693829816914,2.03564553,25862.0,25861.0,0.184]
[1693829817741,1.76663858,25862.0,25861.0,0.184]
[1693829818305,1.99452153,25862.0,25861.0,0.184]
[1693829818519,1.76663858,25862.0,25861.0,0.184]
[1693829818710,2.0472766,25862.0,25861.0,0.184]
[1693829819117,1.76663858,25862.0,25861.0,0.184]
[1693829819515,2.01022667,25862.0,25861.0,0.184]
[1693829820459,1.65325579,25862.0,25861.0,0.184]
[1693829820665,1.78515579,25862.0,25861.0,0.184]
[1693829820789,2.06880313,25862.0,25861.0,0.184]
[1693829820995,2.07132313,25862.0,25861.0,0.184]
[1693829821203,2.13498313,25862.0,25861.0,0.184]
[1693829821412,2.08998313,25862.0,25861.0,0.18]
[1693829821614,2.10822313,25862.0,25861.0,0.181]
[1693829821815,2.13276313,25862.0,25861.0,0.181]
[1693829822025,2.10816313,25862.0,25861.0,0.18]
[1693829822227,2.35759269,25862.0,25861.0,0.18]
[1693829822441,2.08110313,25862.0,25861.0,0.181]
[1693829822634,2.10984313,25862.0,25861.0,0.18]
[1693829822842,2.12208313,25862.0,25861.0,0.18]
[1693829823034,2.12898313,25862.0,25861.0,0.181]
[1693829823283,2.10408313,25862.0,25861.0,0.181]
[1693829823492,2.10402313,25862.0,25861.0,0.181]
[1693829823711,2.12208313,25862.0,25861.0,0.181]
[1693829823903,2.12268313,25862.0,25861.0,0.181]
[1693829824135,2.13690313,25862.0,25861.0,0.181]
[1693829824535,2.13774313,25862.0,25861.0,0.181]
[1693829824703,2.13726313,25862.0,25861.0,0.181]
[1693829824902,2.12694313,25862.0,25861.0,0.181]
[1693829825119,2.58458522,25862.0,25861.0,0.181]
[1693829825334,2.90524739,25862.0,25861.0,0.16687659]
[1693829825588,2.87008739,25862.0,25861.0,0.16687659]
[1693829825757,2.85004739,25862.0,25861.0,0.16687659]
[1693829825954,2.82760739,25862.0,25861.0,0.16687659]
[1693829826110,2.82892739,25862.0,25861.0,0.16687659]
[1693829826315,2.86792739,25862.0,25861.0,0.16687659]
[1693829826521,2.88304739,25862.0,25861.0,0.16687659]
[1693829826725,2.82076739,25862.0,25861.0,0.16587659]
[1693829826941,2.82208739,25862.0,25861.0,0.16587659]
[1693829827135,3.0277466,25862.0,25861.0,0.16587659]
[1693829827345,2.05748443,25862.0,25861.0,0.16587659]
[1693829827597,1.76178623,25862.0,25861.0,0.16587659]
[1693829827995,1.82724623,25862.0,25861.0,0.16587659]
[1693829828195,1.87524623,25862.0,25861.0,0.16587659]
[1693829828421,1.87950623,25862.0,25861.0,0.16587659]
[1693829828729,1.64996702,25862.0,25861.0,0.16587659]
[1693829828903,1.69268135,25862.0,25861.0,0.16587659]
[1693829829129,1.91616264,25862.0,25861.0,0.16587659]
[1693829829308,2.02282135,25862.0,25861.0,0.16587659]
[1693829829507,1.74637062,25862.0,25861.0,0.16587659]
[1693829829753,1.80502704,25862.0,25861.0,0.16587659]
[1693829829888,2.03045773,25862.0,25861.0,0.16587659]
[1693829830085,1.79548704,25862.0,25861.0,0.16587659]
[1693829830286,1.80598704,25862.0,25861.0,0.16587659]
[1693829830489,1.80802704,25862.0,25861.0,0.16587659]
[1693829830722,1.82254704,25862.0,25861.0,0.16587659]
[1693829830914,1.93620704,25862.0,25861.0,0.16587659]
[1693829831106,1.92858704,25862.0,25861.0,0.16587659]
[1693829831288,1.92492704,25862.0,25861.0,0.16587659]
[1693829831511,1.91004704,25862.0,25861.0,0.16587659]
[1693829831721,1.91004704,25862.0,25857.0,0.1076]
[1693829831722,0.001,25859.0,25857.0,0.1076]
[1693829831941,0.47948098,25858.0,25857.0,0.1076]
[1693829832158,1.0808241,25858.0,25857.0,0.1076]
[1693829833283,1.1048241,25858.0,25857.0,0.1076]
[1693829834445,1.1288241,25858.0,25857.0,0.1076]
[1693829837535,1.1288241,25858.0,25855.0,0.1076]
[1693829837737,0.32,25857.0,25855.0,0.1076]
[1693829838838,0.32,25857.0,25856.0,0.1076]
[1693829839308,0.344,25857.0,25856.0,0.1076]
[1693829840220,0.32,25857.0,25856.0,0.1076]
[1693829840626,0.92798786,25857.0,25853.0,0.1466]
[1693829840875,0.38708678,25856.0,25853.0,0.1466]
[1693829841083,0.02,25855.0,25853.0,0.1466]
[1693829841241,0.02,25855.0,25854.0,0.1076]
[1693829841445,0.80390108,25857.0,25854.0,0.1076]
[1693829841647,1.16698786,25857.0,25854.0,0.1076]
[1693829841851,1.19098786,25857.0,25854.0,0.1076]
[1693829842055,0.024,25856.0,25854.0,0.1076]
[1693829842254,1.34358786,25857.0,25854.0,0.1076]
[1693829842457,0.95598786,25857.0,25854.0,0.1076]
[1693829842657,0.73508678,25857.0,25854.0,0.1076]
[1693829843005,0.71108678,25857.0,25856.0,0.1076]
[1693829843523,0.324,25857.0,25856.0,0.1076]
[1693829844407,0.3,25857.0,25856.0,0.1076]
[1693829844611,0.3933942,25858.0,25856.0,0.1076]
[1693829844958,0.048,25857.0,25856.0,0.1076]
[1693829845119,0.348,25857.0,25856.0,0.1076]
[1693829845316,0.324,25857.0,25856.0,0.1076]
[1693829845515,0.3,25857.0,25856.0,0.1076]
[1693829846475,0.048,25857.0,25856.0,0.1076]
[1693829846681,0.348,25857.0,25856.0,0.14232649]
[1693829847090,0.348,25857.0,25856.0,0.1076]
[1693829849293,0.048,25857.0,25856.0,0.2542]
[1693829849498,0.048,25857.0,25856.0,0.39362]
[1693829849721,0.04545988,25857.0,25856.0,0.39350334]
[1693829849933,0.04545988,25857.0,25856.0,0.42864261]
[1693829850130,0.04545988,25857.0,25856.0,0.81572939]
[1693829850957,0.02145988,25857.0,25856.0,0.81572939]
[1693829851362,0.005,25857.0,25856.0,0.81572939]
[1693829851530,0.012,25857.0,25856.0,0.81672939]
[1693829851731,0.007,25857.0,25856.0,0.81672939]
[1693829852155,0.012,25857.0,25856.0,0.98672939]
[1693829853560,0.012,25857.0,25856.0,0.81672939]
[1693829856252,0.012,25857.0,25856.0,0.79672939]
[1693829856460,0.012,25857.0,25856.0,0.81672939]
[1693829865357,0.012,25857.0,25856.0,0.71672939]
[1693829865537,0.012,25857.0,25856.0,0.81672939]
[1693829868260,0.012,25857.0,25856.0,0.42964261]
[1693829877410,0.012,25857.0,25856.0,0.34964261]
[1693829878753,0.04,25848.0,25847.0,0.17038391]
[1693829878969,0.04,25847.0,25846.0,0.01989699]
[1693829879128,0.58192149,25847.0,25846.0,0.01989699]
[1693829879500,0.99431569,25847.0,25846.0,0.01989699]
[1693829879614,0.90192149,25847.0,25846.0,0.01989699]
[1693829879835,0.21965993,25843.0,25842.0,0.01989699]
[1693829880035,0.21965993,25843.0,25842.0,0.12749699]
[1693829880036,0.37449464,25843.0,25842.0,0.12749699]
[1693829880235,0.21965993,25843.0,25842.0,0.18663399]
[1693829881270,0.25465993,25843.0,25842.0,0.15913459]
[1693829881699,0.049,25843.0,25842.0,0.15913459]
[1693829882125,0.06052534,25842.0,25841.0,0.01989699]
[1693829882363,0.06052534,25842.0,25841.0,0.12749699]
[1693829882568,0.06052534,25842.0,25841.0,0.15100669]
[1693829883182,0.06552534,25842.0,25841.0,0.15100669]
[1693829883601,0.015,25843.0,25842.0,0.02]
[1693829883851,0.00098183,25848.0,25843.0,0.02]
[1693829884098,0.0923942,25854.0,25849.0,0.02]
[1693829884320,0.2309855,25855.0,25850.0,0.56128749]
[1693829884522,0.0923942,25855.0,25851.0,0.07812875]
[1693829884745,0.0923942,25855.0,25854.0,0.1076]
[1693829886227,0.1053942,25855.0,25854.0,0.13714301]
[1693829886449,0.013,25855.0,25854.0,0.13714301]
[1693829886657,1.2987855,25856.0,25854.0,0.13714301]
[1693829886887,1.2987855,25856.0,25855.0,0.1076]
[1693829887066,0.3109855,25856.0,25855.0,0.1076]
[1693829887281,0.2309855,25857.0,25856.0,0.1076]
[1693829887505,0.0923942,25857.0,25856.0,0.29390305]
[1693829887936,0.0923942,25857.0,25856.0,0.2152]
[1693829888154,0.2309855,25857.0,25856.0,0.2152]
[1693829888768,0.2549855,25857.0,25856.0,0.2152]
[1693829888976,0.1163942,25857.0,25856.0,0.2152]
[1693829889392,0.1403942,25857.0,25856.0,0.2162]
[1693829889598,0.1403942,25857.0,25856.0,0.23782]
[1693829889806,0.1163942,25857.0,25856.0,0.23682]
[1693829890043,0.4688855,25858.0,25856.0,0.23682]
[1693829890227,0.048,25857.0,25856.0,0.13022]
[1693829890436,0.048,25857.0,25856.0,0.23782]
[1693829890852,0.024,25857.0,25856.0,0.23682]
[1693829892128,0.024,25857.0,25856.0,0.23782]
[1693829892770,0.024,25857.0,25856.0,0.23682]
[1693829893018,0.048,25857.0,25856.0,0.23782]
[1693829893640,0.048,25857.0,25856.0,0.26751731]
[1693829895823,0.048,25857.0,25844.0,0.11277347]
[1693829895824,0.04,25849.0,25844.0,0.11277347]
[1693829895998,0.19483471,25848.0,25847.0,0.1076]
[1693829896198,0.15483471,25848.0,25847.0,0.1076]
[1693829896399,0.19483471,25848.0,25847.0,0.1076]
[1693829896802,0.04,25848.0,25847.0,0.1076]
[1693829897005,0.052,25848.0,25847.0,0.1076]
[1693829897423,0.076,25848.0,25847.0,0.1076]
[1693829897689,0.064,25848.0,25847.0,0.1076]
[1693829897838,0.024,25848.0,25847.0,0.1076]
[1693829898045,0.317527,25848.0,25847.0,0.1076]
[1693829898852,0.341527,25848.0,25847.0,0.1076]
[1693829903368,0.341527,25848.0,25843.0,0.2301]
[1693829903369,0.04,25846.0,25844.0,0.1076]
[1693829903584,0.04,25846.0,25844.0,0.14137]
[1693829903799,0.04,25846.0,25844.0,0.1076]
[1693829903981,0.04,25846.0,25845.0,0.1076]
[1693829904108,0.04,25846.0,25845.0,0.13276643]
[1693829904533,0.064,25846.0,25845.0,0.13276643]
[1693829904729,0.04,25846.0,25845.0,0.13276643]
[1693829905131,0.064,25846.0,25845.0,0.02516643]
[1693829906125,0.04,25845.0,25837.0,0.12791587]
[1693829906369,0.04,25845.0,25836.0,0.01989699]
[1693829906370,0.2,25837.0,25836.0,0.01989699]
[1693829906574,1.14952149,25837.0,25836.0,0.01989699]
[1693829906796,0.98192149,25837.0,25836.0,0.01989699]
[1693829906988,1.94220036,25837.0,25836.0,0.01989699]
[1693829907622,0.02,25836.0,25832.0,0.1076]
[1693829907840,1.15511358,25835.0,25832.0,0.50412948]
[1693829908053,1.11511358,25835.0,25834.0,0.1076]
[1693829908284,0.04,25831.0,25830.0,0.01989699]
[1693829908503,0.04,25831.0,25830.0,0.12749699]
[1693829908504,0.19483471,25831.0,25830.0,0.12749699]
[1693829908696,0.32,25834.0,25830.0,0.12749699]
[1693829908697,0.04,25834.0,25830.0,0.12749699]
[1693829908907,0.04,25833.0,25830.0,0.01989699]
[1693829909116,0.04,25833.0,25832.0,0.1076]
[1693829909852,0.04,25834.0,25832.0,0.2152]
[1693829910067,0.1615,25838.0,25833.0,0.53620678]
[1693829910068,0.04,25838.0,25833.0,0.53620678]
[1693829910286,0.02,25840.0,25834.0,0.15420071]
[1693829910287,0.007,25835.0,25834.0,0.15420071]
[1693829910493,0.04,25837.0,25834.0,0.38708678]
[1693829910697,0.04,25837.0,25835.0,0.42994746]
[1693829910915,0.04,25837.0,25836.0,0.1076]
[1693829911557,0.04,25837.0,25836.0,0.49468678]
[1693829911977,0.007,25837.0,25836.0,0.49468678]
[1693829912388,0.047,25837.0,25836.0,0.49468678]
[1693829912607,0.047,25837.0,25836.0,0.54844153]
[1693829912827,0.06,25837.0,25836.0,0.54844153]
[1693829913031,0.06,25837.0,25836.0,0.58464153]
[1693829913492,0.02,25837.0,25836.0,0.58464153]
[1693829913712,0.013,25837.0,25836.0,0.58464153]
[1693829913934,0.028,25837.0,25836.0,0.6087396]
[1693829921051,0.015,25837.0,25836.0,0.6087396]
[1693829921232,0.002,25837.0,25836.0,0.6127396]
[1693829921452,0.004,25837.0,25836.0,0.6137396]
[1693829921658,0.004,25837.0,25836.0,0.6097396]
[1693829921950,0.04,25839.0,25836.0,0.6127396]
[1693829922122,0.002,25837.0,25836.0,0.08185282]
[1693829922326,0.002,25837.0,25836.0,0.22565282]
[1693829922567,0.002,25837.0,25836.0,0.24565282]
[1693829923149,0.004,25837.0,25836.0,0.24665282]
[1693829924119,0.004,25837.0,25836.0,0.6337396]
[1693829924329,0.004,25837.0,25836.0,0.6137396]
[1693829925224,0.004,25837.0,25836.0,0.7975396]
[1693829925425,0.004,25837.0,25836.0,0.6537396]
[1693829926990,0.004,25837.0,25836.0,0.7975396]
[1693829928128,0.004,25837.0,25836.0,0.8375396]
[1693829929445,0.004,25837.0,25836.0,0.6937396]
[1693829932637,0.004,25837.0,25836.0,0.6137396]
[1693829932821,0.29488473,25837.0,25836.0,0.17289807]
[1693829933481,0.04,25838.0,25836.0,0.17289807]
[1693829933482,0.04,25838.0,25836.0,0.16789807]
[1693829933686,0.001,25837.0,25836.0,0.16889807]
[1693829933879,0.003,25837.0,25836.0,0.17289807]
[1693829934292,0.27580177,25837.0,25836.0,0.16789807]
[1693829934425,0.29980177,25837.0,25836.0,0.16789807]
[1693829934629,0.32180177,25837.0,25836.0,0.16789807]
[1693829934960,0.046,25837.0,25836.0,0.55498485]
[1693829935208,0.046,25837.0,25836.0,0.61248334]
[1693829938055,0.046,25837.0,25836.0,0.57658334]
[1693829940279,0.046,25837.0,25836.0,0.18949656]
[1693829940488,0.046,25837.0,25836.0,0.13199807]
[1693829948859,0.046,25837.0,25836.0,0.51908485]
[1693829952406,0.024,25837.0,25836.0,0.51908485]
[1693829952619,0.024,25837.0,25836.0,0.62698485]
[1693829952905,0.28904782,25840.0,25836.0,0.63198485]
[1693829953077,0.28904782,25840.0,25839.0,0.1079]
[1693829953309,0.1971,25840.0,25839.0,0.49498678]
[1693829953518,0.1971,25840.0,25839.0,0.51943311]
[1693829954351,0.04,25840.0,25839.0,0.51943311]
[1693829955209,0.061,25840.0,25839.0,0.52143311]
[1693829955438,0.061,25840.0,25839.0,0.60374627]
[1693829955840,0.083,25840.0,25839.0,0.60474627]
[1693829956482,0.43297385,25840.0,25839.0,0.60474627]
[1693829956892,0.56969753,25840.0,25839.0,0.13534633]
[1693829957111,0.52372362,25840.0,25839.0,0.13534633]
[1693829957295,0.6623515,25840.0,25839.0,0.13534633]
[1693829957717,0.6623515,25840.0,25839.0,0.1109]
[1693829958164,0.47845585,25840.0,25839.0,0.1109]
[1693829959297,0.57087491,25840.0,25839.0,0.1109]
[1693829960325,0.43224703,25840.0,25839.0,0.1109]
[1693829963428,0.33982797,25840.0,25839.0,0.1109]
[1693829963645,0.43224703,25840.0,25839.0,0.1109]
[1693829964188,0.083,25840.0,25839.0,0.1109]
[1693829964625,0.083,25840.0,25839.0,0.49798678]
[1693829964841,0.083,25840.0,25839.0,0.54778546]
[1693829965199,0.083,25840.0,25839.0,0.5724087]
[1693829972218,0.043,25840.0,25839.0,0.5724087]
[1693829972412,0.083,25840.0,25839.0,0.5724087]
[1693829980079,0.34799512,25840.0,25839.0,0.4645087]
[1693829980313,0.34799512,25840.0,25839.0,0.5724087]